bitfinex-derivatives/quotes_SOLF0:USTF0_20230402
["timestamp","ask_amount","ask_price","bid_price","bid_amount"]
[1680409216984,63.5194,21.027,21.019,18.87]
[1680409218185,63.5194,21.027,21.02,10.0]
[1680409218883,63.5194,21.027,21.019,18.87]
[1680409220787,63.5194,21.027,21.02,10.0]
[1680409220993,63.5994,21.027,21.02,28.87]
[1680409224893,63.5994,21.027,21.02,18.87]
[1680409247198,18.9,21.025,21.018,18.98]
[1680409257013,63.5994,21.027,21.019,18.87]
[1680409267118,18.9,21.026,21.018,18.98]
[1680409271822,18.9,21.023,21.015,18.98]
[1680409287029,18.9,21.021,21.014,18.98]
[1680409292936,18.9,21.019,21.011,18.98]
[1680409302946,18.98,21.015,21.009,45.4832]
[1680409327055,18.98,21.016,21.009,45.4832]
[1680409338863,18.98,21.016,21.01,10.0]
[1680409340368,18.98,21.016,21.009,45.4832]
[1680409354876,18.98,21.016,21.008,18.87]
[1680409355179,18.9,21.012,21.005,18.98]
[1680409357077,18.9,21.012,21.004,18.98]
[1680409370789,18.98,21.008,21.0,18.87]
[1680409370989,18.98,21.008,21.001,10.0]
[1680409373688,18.98,21.008,21.0,18.87]
[1680409374593,18.98,21.008,21.001,10.0]
[1680409377192,18.98,21.008,21.0,18.87]
[1680409383892,10.0,21.013,20.964,22.06672313]
[1680409383893,142.8,20.995,20.964,22.06672313]
[1680409384192,142.8,20.995,20.952,441.55132894]
[1680409384193,18.9,20.98,20.969,18.87]
[1680409384395,18.9,20.976,20.968,18.87]
[1680409386991,18.98,20.977,20.97,18.98]
[1680409387393,23.76,20.979,20.968,23.72]
[1680409390704,23.62,20.976,20.965,45.5904]
[1680409392307,23.76,20.973,20.965,45.5904]
[1680409397108,23.76,20.973,20.965,45.40047276]
[1680409398509,23.71,20.969,20.962,10.0]
[1680409398710,23.71,20.969,20.957,23.72]
[1680409399007,23.71,20.969,20.958,10.0]
[1680409400303,23.71,20.969,20.953,10.0]
[1680409400304,23.61,20.966,20.954,23.67]
[1680409401611,23.62,20.963,20.952,23.72]
[1680409401912,23.62,20.963,20.953,10.0]
[1680409409816,0.07116529,20.965,20.956,23.72]
[1680409410514,0.07116529,20.965,20.957,10.0]
[1680409416123,0.07116529,20.965,20.956,23.72]
[1680409420832,23.76,20.964,20.953,10.0]
[1680409422030,0.07116529,20.965,20.955,23.72]
[1680409422226,0.07116529,20.965,20.956,10.0]
[1680409426632,0.07116529,20.965,20.955,23.72]
[1680409427033,23.69116529,20.965,20.953,33.72]
[1680409430035,0.07116529,20.965,20.956,23.67]
[1680409430334,0.07116529,20.965,20.957,10.0]
[1680409430937,0.07116529,20.965,20.958,47.6096]
[1680409442345,0.07116529,20.965,20.959,10.0]
[1680409442545,0.06689339,20.969,20.96,23.82]
[1680409442746,23.71,20.971,20.961,10.0]
[1680409443750,23.76,20.968,20.958,47.6096]
[1680409447051,23.76,20.966,20.958,47.6096]
[1680409457349,0.06015553,20.972,20.958,47.6096]
[1680409457554,19.08,20.964,20.958,47.6096]
[1680409462260,19.08,20.964,20.959,10.0]
[1680409463462,19.08,20.964,20.958,47.6096]
[1680409486979,19.08,20.962,20.958,47.6096]
[1680409488780,19.06,20.959,20.951,19.05]
[1680409497089,19.06,20.959,20.95,29.05]
[1680409507092,19.08,20.96,20.952,19.05]
[1680409510688,19.08,20.96,20.953,10.0]
[1680409517102,19.08,20.961,20.953,29.05]
[1680409521506,0.06789523,20.962,20.956,19.05]
[1680409521804,19.08,20.963,20.956,19.05]
[1680409525602,19.06,20.96,20.953,19.05]
[1680409527109,19.06,20.961,20.954,19.05]
[1680409529310,19.06,20.961,20.955,10.0]
[1680409530714,19.06,20.961,20.954,19.05]
[1680409537022,19.08,20.96,20.953,19.05]
[1680409545428,19.08,20.957,20.949,19.05]
[1680409545630,19.08,20.954,20.948,47.9865]
[1680409547128,19.08,20.952,20.948,47.9865]
[1680409548222,19.08,20.952,20.945,19.05]
[1680409549024,19.08,20.952,20.945,10.0]
[1680409554836,19.08,20.952,20.938,10.0]
[1680409555137,19.06,20.948,20.941,19.05]
[1680409557037,19.08,20.948,20.941,10.0]
[1680409558237,19.08,20.948,20.94,19.05]
[1680409558938,19.08,20.948,20.941,10.0]
[1680409561140,0.11689303,20.941,20.94,19.05]
[1680409564736,0.00689303,20.941,20.94,19.05]
[1680409567345,0.00689303,20.941,20.938,33.85]
[1680409569544,0.00689303,20.941,20.937,45.8224]
[1680409569845,0.00689303,20.941,20.933,10.0]
[1680409570046,0.00689303,20.941,20.933,56.1045]
[1680409573948,0.00689303,20.943,20.933,56.1045]
[1680409591856,23.88,20.946,20.935,23.88]
[1680409592057,23.88,20.946,20.936,10.0]
[1680409614478,0.06643085,20.947,20.939,23.67]
[1680409614776,0.06643085,20.947,20.941,10.0]
[1680409614977,23.88,20.95,20.941,10.0]
[1680409617885,23.88,20.95,20.94,56.6089]
[1680409618286,23.88,20.95,20.941,10.0]
[1680409624085,23.88,20.947,20.935,23.88]
[1680409624282,23.88,20.947,20.935,69.5986]
[1680409625187,23.88,20.947,20.936,10.0]
[1680409627589,23.88,20.947,20.935,23.88]
[1680409629892,23.88,20.943,20.932,23.67]
[1680409637402,18.94,20.942,20.934,19.04]
[1680409637903,18.94,20.942,20.935,10.0]
[1680409638498,18.94,20.944,20.937,19.12]
[1680409645907,0.06397236,20.945,20.94,19.12]
[1680409646107,18.94,20.948,20.941,10.0]
[1680409647011,19.18879904,20.95,20.942,19.12]
[1680409657022,0.06879904,20.95,20.943,19.04]
[1680409657721,0.06879904,20.95,20.944,10.0]
[1680409657917,18.94,20.953,20.946,19.12]
[1680409662326,23.69,20.955,20.944,79.1546]
[1680409674632,23.69,20.955,20.944,69.1546]
[1680409679537,23.69,20.955,20.945,10.0]
[1680409683139,23.69,20.955,20.944,69.1546]
[1680409683341,23.69,20.955,20.945,10.0]
[1680409688644,23.69,20.955,20.944,69.1546]
[1680409690350,23.69,20.955,20.945,10.0]
[1680409696047,23.69,20.955,20.944,69.1546]
[1680409699853,23.69,20.955,20.945,10.0]
[1680409702856,0.06914426,20.957,20.948,23.87]
[1680409703057,0.06914426,20.957,20.949,10.0]
[1680409705756,0.06914426,20.957,20.948,23.87]
[1680409717068,0.06914426,20.957,20.949,10.0]
[1680409727475,0.06914426,20.957,20.951,19.09]
[1680409727776,19.09,20.959,20.951,19.09]
[1680409729179,19.09,20.958,20.95,19.09]
[1680409729382,19.09,20.958,20.951,44.1322]
[1680409757007,19.09,20.955,20.951,44.1322]
[1680409757203,19.09,20.955,20.947,19.03]
[1680409757803,19.09,20.952,20.945,10.0]
[1680409758003,19.09,20.952,20.944,19.09]
[1680409772512,19.09,20.952,20.945,10.0]
[1680409777018,19.09,20.954,20.946,19.09]
[1680409777220,19.09,20.954,20.946,65.0793]
[1680409780322,19.09,20.951,20.946,45.9893]
[1680409787025,19.09,20.95,20.946,45.9893]
[1680409796933,19.09,20.951,20.946,45.9893]
[1680409806942,19.09,20.953,20.946,45.9893]
[1680409816955,19.09,20.955,20.947,19.03]
[1680409827062,19.09,20.954,20.946,65.0793]
[1680409836970,19.09,20.953,20.946,45.9893]
[1680409853784,19.15509366,20.956,20.949,19.03]
[1680409856985,0.06509366,20.956,20.95,19.03]
[1680409857284,19.09,20.957,20.95,19.03]
[1680409866990,19.09,20.956,20.949,19.03]
[1680409873195,19.09,20.956,20.95,10.0]
[1680409873797,19.09,20.956,20.949,19.03]
[1680409888711,19.09,20.956,20.95,10.0]
[1680409889112,19.15524832,20.96,20.953,19.03]
[1680409916926,19.09,20.959,20.951,19.09]
[1680409920337,19.09,20.955,20.947,29.03]
[1680409920634,19.09,20.955,20.947,19.03]
[1680409921329,19.09,20.952,20.944,19.03]
[1680409937048,19.09,20.95,20.943,19.09]
[1680409944356,19.09,20.95,20.944,10.0]
[1680409946159,19.09,20.95,20.943,19.09]
[1680409957172,19.09,20.948,20.94,19.09]
[1680409958872,19.09,20.95,20.943,19.03]
[1680409960166,19.09,20.953,20.946,19.03]
[1680409960370,0.06258806,20.954,20.949,19.03]
[1680409960567,19.09,20.957,20.949,19.03]
[1680409967080,19.09,20.956,20.948,19.03]
[1680409976993,19.09,20.956,20.949,19.09]
[1680410033735,19.15106934,20.959,20.952,19.09]
[1680410037031,0.06106934,20.959,20.952,19.09]
[1680410037232,27.30034295,20.959,20.953,44.1329]
[1680410037433,27.23927361,20.959,20.953,44.1329]
[1680410046946,27.23927361,20.959,20.953,63.2229]
[1680410049147,19.09,20.958,20.953,44.1329]
[1680410053855,19.09,20.958,20.95,19.09]
[1680410054255,19.09,20.954,20.947,45.8098]
[1680410068867,19.09,20.954,20.946,19.03]
[1680410069070,19.09,20.947,20.937,19.03]
[1680410069274,19.09,20.945,20.937,19.03]
[1680410069573,19.09,20.945,20.938,10.0]
[1680410072078,19.09,20.945,20.937,19.03]
[1680410076977,19.09,20.944,20.936,19.09]
[1680410087084,19.09,20.943,20.936,19.09]
[1680410097098,19.09,20.943,20.935,19.09]
[1680410098503,19.09,20.943,20.936,10.0]
[1680410099398,19.09,20.943,20.935,19.09]
[1680410104101,19.09,20.943,20.936,10.0]
[1680410104396,0.0672901,20.946,20.936,10.0]
[1680410104602,0.0672901,20.946,20.945,19.09]
[1680410104804,0.06983669,20.953,20.945,19.09]
[1680410105097,0.06133514,20.956,20.949,19.09]
[1680410105300,19.09,20.957,20.949,19.09]
[1680410106097,19.1562076,20.96,20.953,19.03]
[1680410106298,0.0662076,20.96,20.956,19.09]
[1680410106599,19.09,20.964,20.956,19.09]
[1680410106999,19.09,20.964,20.957,19.03]
[1680410107400,0.06144757,20.965,20.955,23.84]
[1680410107796,10.06144757,20.965,20.955,23.84]
[1680410108404,0.06144757,20.965,20.955,23.84]
[1680410113905,0.06144757,20.965,20.956,44.7754]
[1680410114504,0.06144757,20.965,20.957,10.0]
[1680410121510,0.06144757,20.965,20.956,44.7754]
[1680410121710,0.06144757,20.965,20.957,23.84]
[1680410125423,0.06144757,20.965,20.958,10.0]
[1680410125622,0.06144757,20.965,20.96,23.84]
[1680410125825,0.06122207,20.97,20.96,23.84]
[1680410136928,23.84,20.969,20.958,33.84]
[1680410138331,23.84,20.969,20.958,23.84]
[1680410145432,23.84,20.969,20.959,10.0]
[1680410146535,23.84,20.969,20.958,23.84]
[1680410148835,23.84,20.969,20.959,10.0]
[1680410153438,0.06122207,20.97,20.964,23.72]
[1680410153644,0.06556829,20.974,20.964,23.72]
[1680410153837,1.81872575,20.974,20.964,23.72]
[1680410154338,1.81872575,20.974,20.965,44.7083]
[1680410167454,19.06,20.973,20.966,19.06]
[1680410173458,27.14267774,20.972,20.966,19.06]
[1680410175361,19.06,20.971,20.965,44.7083]
[1680410175661,27.14267774,20.97,20.965,44.7083]
[1680410177162,46.04267774,20.97,20.965,44.7083]
[1680410177364,27.14267774,20.969,20.965,44.7083]
[1680410185861,18.9,20.97,20.965,44.7083]
[1680410188869,27.14818827,20.969,20.965,44.7083]
[1680410207285,27.14818827,20.971,20.965,44.7083]
[1680410229800,27.14818827,20.971,20.966,10.0]
[1680410237004,27.14818827,20.971,20.967,19.06]
[1680410237205,27.14818827,20.97,20.967,19.06]
[1680410237405,27.14818827,20.973,20.967,19.06]
[1680410237607,27.14818827,20.972,20.967,19.06]
[1680410237801,27.14818827,20.971,20.967,19.06]
[1680410238006,27.14818827,20.97,20.967,19.06]
[1680410238202,27.14818827,20.969,20.967,19.06]
[1680410238405,18.96556829,20.974,20.967,19.06]
[1680410238606,27.16554336,20.973,20.967,19.06]
[1680410239012,19.06,20.971,20.963,19.06]
[1680410239307,27.16554336,20.97,20.963,19.06]
[1680410247016,19.06,20.969,20.962,19.06]
[1680410247218,27.16554336,20.968,20.962,19.06]
[1680410262429,19.06,20.969,20.962,19.06]
[1680410263129,27.18070162,20.968,20.962,19.06]
[1680410265930,19.06,20.969,20.962,19.06]
[1680410270333,27.16947707,20.968,20.962,19.06]
[1680410271233,19.06,20.969,20.962,19.06]
[1680410276035,27.16571109,20.968,20.962,19.06]
[1680410277036,18.9,20.971,20.964,19.06]
[1680410277231,27.1657612,20.97,20.964,19.06]
[1680410281743,27.1657612,20.97,20.967,19.06]
[1680410281939,19.12556829,20.974,20.967,19.06]
[1680410282133,27.16229408,20.973,20.967,19.06]
[1680410286945,27.16229408,20.973,20.969,19.06]
[1680410287146,27.16229408,20.976,20.969,19.06]
[1680410287342,27.1518497,20.975,20.969,19.06]
[1680410287549,27.1518497,20.976,20.969,19.06]
[1680410287846,27.1518497,20.975,20.969,19.06]
[1680410288044,27.1518497,20.976,20.969,19.06]
[1680410288241,27.1518497,20.975,20.969,19.06]
[1680410288444,18.9,20.977,20.969,19.06]
[1680410306959,19.12023329,20.978,20.97,19.06]
[1680410311464,0.06923355,20.97,20.967,10.0]
[1680410311666,0.06923355,20.97,20.969,19.06]
[1680410316471,0.06923355,20.97,20.969,18.962636]
[1680410350398,0.06923355,20.97,20.968,19.06]
[1680410354100,0.06923355,20.97,20.969,10.0]
[1680410365403,19.06,20.975,20.97,0.10511329]
[1680410393018,18.9,20.972,20.948,143.2]
[1680410393221,19.06,20.965,20.948,190.0156]
[1680410393521,18.9,20.961,20.949,10.0]
[1680410393719,18.9,20.961,20.954,19.06]
[1680410394027,18.9,20.961,20.949,10.0]
[1680410394423,0.06504962,20.964,20.954,19.06]
[1680410395021,18.9,20.961,20.954,19.06]
[1680410395222,18.9,20.961,20.955,10.0]
[1680410396525,18.9,20.961,20.954,19.06]
[1680410396915,0.06504962,20.964,20.954,19.06]
[1680410397121,19.06,20.962,20.954,19.06]
[1680410397424,19.06,20.959,20.951,19.06]
[1680410406922,19.06,20.958,20.951,19.06]
[1680410411029,19.06,20.955,20.948,46.8156]
[1680410413530,19.06,20.955,20.947,19.06]
[1680410416031,19.06,20.951,20.944,19.06]
[1680410418436,10.0,20.957,20.941,10.0]
[1680410418637,10.0,20.957,20.927,99.92932365]
[1680410418638,18.9,20.945,20.929,56.4303]
[1680410418938,0.06118434,20.944,20.93,10.0]
[1680410419138,0.06118434,20.944,20.938,19.06]
[1680410419339,18.9,20.945,20.938,19.06]
[1680410419834,18.9,20.945,20.939,10.0]
[1680410420138,0.06962546,20.948,20.941,19.06]
[1680410420339,0.06962546,20.948,20.944,19.06]
[1680410420539,19.06,20.952,20.944,19.06]
[1680410422335,19.06,20.952,20.945,10.0]
[1680410425243,19.06,20.952,20.944,19.06]
[1680410426947,0.06614903,20.953,20.946,19.06]
[1680410430446,0.06614903,20.953,20.947,10.0]
[1680410430642,18.9,20.954,20.947,10.0]
[1680410432045,18.9,20.954,20.946,19.06]
[1680410447864,0.06767932,20.957,20.951,19.06]
[1680410448064,18.9,20.958,20.951,19.06]
[1680410448264,18.9,20.958,20.952,10.0]
[1680410450164,18.9,20.958,20.951,19.06]
[1680410450967,0.06829904,20.961,20.957,19.06]
[1680410451263,18.9,20.964,20.957,19.06]
[1680410456968,18.9,20.965,20.958,19.06]
[1680410457368,0.06550341,20.966,20.956,23.8]
[1680410457562,0.06550341,20.966,20.957,48.5054]
[1680410460171,0.06550341,20.966,20.958,10.0]
[1680410466976,0.06550341,20.966,20.958,33.69]
[1680410471078,0.06550341,20.966,20.958,23.69]
[1680410475978,0.06550341,20.966,20.957,48.5054]
[1680410486985,23.84,20.964,20.957,48.5054]
[1680410501701,23.83,20.961,20.957,48.5054]
[1680410504006,23.83,20.961,20.951,10.0]
[1680410505107,23.83,20.961,20.95,23.8]
[1680410506411,23.74,20.957,20.946,33.69]
[1680410507109,23.74,20.957,20.946,10.0]
[1680410509402,23.74,20.957,20.945,81.2875]
[1680410511109,23.74,20.957,20.945,71.2875]
[1680410517014,23.83,20.954,20.945,71.2875]
[1680410522415,0.06437835,20.959,20.945,47.5975]
[1680410522616,18.99,20.953,20.945,66.6975]
[1680410537019,19.1,20.954,20.947,19.1]
[1680410546128,18.99,20.952,20.945,47.5975]
[1680410552533,18.99,20.948,20.945,47.5975]
[1680410556935,18.99,20.949,20.945,47.5975]
[1680410557229,18.99,20.949,20.942,19.1]
[1680410557436,19.1,20.946,20.939,63.4318]
[1680410560437,0.0614005,20.95,20.939,63.4318]
[1680410560438,19.1,20.943,20.939,44.1802847]
[1680410564040,19.1,20.946,20.94,10.0]
[1680410567039,18.99,20.948,20.94,29.1]
[1680410575049,18.99,20.948,20.94,19.1]
[1680410577046,19.1,20.946,20.939,63.2802847]
[1680410588255,19.1,20.946,20.939,19.1]
[1680410588455,18.99,20.94,20.931,19.1]
[1680410595357,18.8047889,20.94,20.931,19.1]
[1680410596956,19.1,20.938,20.931,19.1]
[1680410612366,19.1,20.938,20.932,10.0]
[1680410612673,19.1,20.942,20.935,19.1]
[1680410626986,18.99,20.943,20.936,19.1]
[1680410630984,18.99,20.941,20.933,19.1]
[1680410631489,18.99,20.941,20.934,10.0]
[1680410631690,19.1,20.944,20.936,19.1]
[1680410632990,19.1,20.944,20.937,10.0]
[1680410633191,0.06402711,20.945,20.94,19.1]
[1680410633386,18.99,20.947,20.94,19.1]
[1680410637091,18.99,20.948,20.941,19.1]
[1680410651003,19.05526229,20.95,20.943,19.1]
[1680410656711,19.05526229,20.95,20.944,10.0]
[1680410656912,18.99,20.95,20.944,10.0]
[1680410657116,19.1,20.951,20.944,29.1]
[1680410657612,19.1,20.951,20.944,19.1]
[1680410677029,18.99,20.95,20.943,19.1]
[1680410696643,27.25225687,20.949,20.943,19.1]
[1680410698045,18.99,20.95,20.943,19.1]
[1680410701341,0.07044857,20.954,20.949,19.1]
[1680410701545,18.99,20.957,20.949,19.1]
[1680410706946,0.06318276,20.959,20.951,19.1]
[1680410707144,18.99,20.958,20.951,19.1]
[1680410716957,18.99,20.958,20.952,19.1]
[1680410725069,0.06318276,20.959,20.955,19.1]
[1680410725263,19.1,20.962,20.955,19.1]
[1680410727067,19.16078329,20.964,20.956,19.1]
[1680410731771,0.06078329,20.964,20.959,19.1]
[1680410731973,19.1,20.966,20.959,19.1]
[1680410736979,19.1,20.965,20.958,66.4507]
[1680410749977,18.99,20.968,20.961,19.1]
[1680410755983,0.06556694,20.969,20.959,10.0]
[1680410755984,19.16556694,20.969,20.962,19.1]
[1680410756586,18.99,20.967,20.96,19.1]
[1680410756987,19.1,20.965,20.958,66.4507]
[1680410787013,18.99,20.964,20.958,47.3507]
[1680410806932,19.1,20.963,20.958,47.3507]
[1680410827045,18.99,20.964,20.958,47.3507]
[1680410837055,19.1,20.966,20.958,66.4507]
[1680410843062,19.1,20.966,20.959,10.0]
[1680410846967,19.16556694,20.969,20.962,19.1]
[1680410853369,0.06556694,20.969,20.965,19.1]
[1680410853675,27.20888262,20.971,20.965,19.1]
[1680410856977,19.1,20.97,20.963,19.1]
[1680410863279,18.99,20.973,20.966,19.1]
[1680410863479,27.20645936,20.972,20.966,19.1]
[1680410869084,18.99,20.973,20.966,19.1]
[1680410871679,27.18468113,20.972,20.966,19.1]
[1680410872386,18.99,20.973,20.966,19.1]
[1680410872786,27.18507934,20.972,20.966,19.1]
[1680410876289,0.06576163,20.974,20.969,19.028898]
[1680410876486,18.99,20.976,20.97,10.0]
[1680410876987,19.1,20.978,20.971,19.1]
[1680410879487,19.05,20.978,20.971,18.88]
[1680410883490,18.89,20.975,20.968,19.05]
[1680410890892,19.05,20.974,20.968,19.05]
[1680410894297,100.0,20.977,20.96,19.05]
[1680410894298,18.89,20.969,20.96,19.05]
[1680410897097,19.05,20.969,20.962,19.05]
[1680410930627,19.05,20.969,20.963,10.0]
[1680410932831,19.11961104,20.972,20.965,18.88]
[1680410933030,19.11961104,20.972,20.966,10.0]
[1680410933230,19.05,20.972,20.966,10.0]
[1680410937032,18.89,20.974,20.967,19.05]
[1680410945840,18.89,20.971,20.964,44.4544]
[1680410963848,18.89,20.971,20.964,63.5044]
[1680410965551,19.05,20.969,20.964,44.4544]
[1680410987173,19.05,20.97,20.964,44.4544]
[1680410997084,18.89,20.971,20.965,19.05]
[1680411005390,18.89,20.971,20.964,44.4544]
[1680411005591,0.07020021,20.976,20.964,44.4544]
[1680411005592,19.05,20.966,20.964,35.24290353]
[1680411005793,19.05,20.966,20.948,243.12932365]
[1680411005999,0.0640144,20.964,20.958,19.05]
[1680411006191,0.06732035,20.968,20.961,18.88]
[1680411006390,18.89,20.969,20.961,18.88]
[1680411007194,18.89,20.969,20.959,10.0]
[1680411007195,18.89,20.971,20.964,18.88]
[1680411019602,0.06858324,20.972,20.967,18.88]
[1680411019805,18.89,20.974,20.968,10.0]
[1680411020005,18.95827701,20.977,20.97,19.05]
[1680411027105,19.05,20.976,20.969,19.05]
[1680411047717,0.06827701,20.977,20.967,10.0]
[1680411047718,0.06827701,20.977,20.972,19.05]
[1680411048018,18.89,20.978,20.972,19.05]
[1680411066136,19.05,20.974,20.967,18.88]
[1680411075150,19.05,20.974,20.968,10.0]
[1680411077047,19.05,20.976,20.969,18.88]
[1680411084153,19.05,20.975,20.968,18.88]
[1680411091461,19.05,20.975,20.969,10.0]
[1680411091960,18.89,20.976,20.969,28.88]
[1680411096968,18.89,20.979,20.972,18.88]
[1680411098765,19.05,20.976,20.969,19.05]
[1680411114175,19.05,20.975,20.968,19.05]
[1680411117373,19.05,20.975,20.969,10.0]
[1680411119180,19.05,20.975,20.968,19.05]
[1680411126980,19.05,20.977,20.97,18.88]
[1680411148794,18.89,20.98,20.973,19.05]
[1680411148991,18.89,20.98,20.974,10.0]
[1680411149190,0.06589388,20.982,20.977,18.88]
[1680411149386,18.89,20.984,20.977,18.88]
[1680411156992,19.05,20.983,20.975,18.88]
[1680411166406,18.89,20.979,20.972,19.05]
[1680411167105,18.89,20.976,20.969,19.05]
[1680411169609,18.89,20.976,20.97,10.0]
[1680411172213,19.05,20.979,20.972,18.88]
[1680411172415,19.05,20.979,20.973,10.0]
[1680411173513,19.05,20.982,20.975,19.05]
[1680411196537,19.05,20.978,20.971,19.05]
[1680411196938,18.89,20.979,20.972,18.88]
[1680411216955,18.89,20.979,20.973,19.05]
[1680411236974,19.05,20.981,20.974,18.88]
[1680411237271,27.24764339,20.98,20.974,18.88]
[1680411257186,46.13764339,20.98,20.973,18.88]
[1680411257388,18.89,20.98,20.973,18.88]
[1680411268492,10.0,20.979,20.973,18.88]
[1680411268692,19.05,20.977,20.97,19.05]
[1680411268893,10.0,20.976,20.97,19.05]
[1680411270095,19.05,20.977,20.97,19.05]
[1680411283603,19.05,20.977,20.971,10.0]
[1680411284603,19.05,20.98,20.973,18.88]
[1680411297015,19.05,20.981,20.973,18.88]
[1680411300817,27.27234843,20.98,20.973,18.88]
[1680411307423,19.05,20.981,20.973,18.88]
[1680411312524,27.27369377,20.98,20.973,18.88]
[1680411313325,19.05,20.981,20.973,18.88]
[1680411320932,27.27337422,20.98,20.973,18.88]
[1680411326938,18.89,20.98,20.973,18.88]
[1680411340547,32.56625452,20.979,20.973,18.88]
[1680411341946,18.89,20.98,20.973,18.88]
[1680411342143,32.56632111,20.979,20.973,18.88]
[1680411342341,18.89,20.98,20.973,18.88]
[1680411343343,32.55736759,20.979,20.973,18.88]
[1680411343947,18.89,20.98,20.973,18.88]
[1680411344148,32.55747983,20.979,20.973,18.88]
[1680411344547,18.89,20.98,20.973,18.88]
[1680411345250,32.55763714,20.979,20.973,18.88]
[1680411351450,32.55763714,20.979,20.974,10.0]
[1680411351654,0.06949147,20.983,20.978,18.88]
[1680411351854,18.89,20.986,20.98,19.05]
[1680411356958,18.89,20.987,20.981,19.05]
[1680411357659,0.06045566,20.988,20.984,18.88]
[1680411357859,19.05,20.99,20.984,18.88]
[1680411363161,19.05,20.988,20.981,18.88]
[1680411366968,19.05,20.986,20.979,18.88]
[1680411371873,19.05,20.984,20.976,18.88]
[1680411372071,19.05,20.984,20.974,10.0]
[1680411372072,19.05,20.981,20.974,18.88]
[1680411376680,10.06902297,20.987,20.961,10.0]
[1680411376882,0.0604806,20.981,20.961,10.0]
[1680411377089,19.05,20.965,20.96,45.1665]
[1680411377381,19.05,20.965,20.939,99.92932365]
[1680411377575,0.06728465,20.959,20.958,18.88]
[1680411377782,19.05,20.962,20.954,19.05]
[1680411379487,0.06667802,20.965,20.951,29.05]
[1680411379488,19.05,20.958,20.951,29.05]
[1680411379886,19.05,20.958,20.951,19.05]
[1680411382479,0.06667802,20.965,20.95,46.02]
[1680411382480,23.85,20.96,20.95,46.02]
[1680411383583,23.85,20.96,20.95,56.02]
[1680411383885,23.85,20.96,20.95,46.02]
[1680411387188,23.85,20.957,20.945,23.86]
[1680411387684,23.85,20.954,20.943,23.86]
[1680411387886,0.06228709,20.958,20.94,56.9567]
[1680411387887,0.07535967,20.943,20.94,56.9567]
[1680411388191,0.07535967,20.943,20.94,46.9567]
[1680411392985,0.07535967,20.943,20.94,46.81898111]
[1680411394088,0.07535967,20.943,20.941,10.0]